[Event "Israeli Championship 2022"]
[Site "Yosiah Arad"]
[Date "2022.12.10"]
[Round "6.11"]
[White "Zemach, Nadav"]
[Black "Iliaguev, Nisim"]
[Result "1/2-1/2"]
[ECO "E08"]
[WhiteElo "2402"]
[BlackElo "2364"]
[Annotator "TA"]
[PlyCount "49"]
[EventDate "2022.12.05"]
[EventType "swiss"]
[EventCountry "ISR"]
[SourceTitle "playchess.com"]
[Source "ChessBase"]
[SourceQuality "1"]
[TimeControl "40/5400+30:1800+30"]

{[%evp 19,49,0,0,-12,-4,-20,-10,-89,25,35,38,25,31,25,34,8,36,35,45,54,67,31,33,0,0,0,0,0,0,0,0,0]} 1. d4 {[%emt 0:00:02]} Nf6 {[%emt 0:00:05]} 2. c4 {[%emt 0:00:03]} e6 {[%emt 0:00:10]} 3. g3 {[%emt 0:00:05]} d5 {[%emt 0:00:22]} 4. Bg2 {[%emt 0:00:06]} Bb4+ {[%emt 0:00:13]} 5. Bd2 {[%emt 0:00:04]} Be7 {[%emt 0:00:17]} 6. Nf3 {[%emt 0:00:06]} O-O {[%emt 0:00:07]} 7. O-O {[%emt 0:00:17]} c6 {[%emt 0:00:49]} 8. Qc2 {[%emt 0:00:50]} Nbd7 {[%emt 0:06:38]} 9. Bf4 {[%emt 0:01:10]} b6 {[%emt 0:05:59]} 10. cxd5 {[%emt 0:01:12] 10.Nbd2 is the modern continuation.} cxd5 {[%emt 0:03:23]} 11. Ne5 {[%emt 0:00:06] E08: Closed Catalan: Main Line: 7 Qc2.} Nxe5 {[%emt 0:02:44]} 12. dxe5 {[%emt 0:00:06]} Nd7 {[%emt 0:02:13]} 13. e4 {[%emt 0:00:07] [#]} (13. h4 $11) 13... Bb7 $146 {[%emt 0:07:49]} ({Black should play} 13... d4 $1 $17 {aiming for ...g5.} 14. h4 a5) ({Predecessor:} 13... d4 14. Rd1 g5 15. Bc1 Nxe5 16. b3 Ba6 17. Bb2 Rc8 18. Qd2 Nd3 19. Ba3 Qc7 {0-1 (27) Leenhouts,K (2499)-Anand,V (2776) Bastia 2016}) 14. exd5 $11 {[%emt 0:07:01]} Bxd5 {[%emt 0:01:26]} 15. Bxd5 {[%emt 0:09:32]} exd5 {[%emt 0:00:09]} 16. Rd1 {[%emt 0:05:00]} Nc5 $1 {[%emt 0:05:04]} ({Much less strong is} 16... g5 17. Be3 $16) 17. Qd2 {[%emt 0:08:02][%cal Ob1c3] Inhibits d4.} Ne6 {[%emt 0:03:48]} 18. Qxd5 {[%emt 0:15:02]} Nxf4 {[%emt 0:03:05]} 19. gxf4 {[%emt 0:00:13]} Qc8 {[%emt 0:00:04] Hoping for ...Qg4+.} 20. Qf3 {[%emt 0:01:27] Against Qg4+. White is more active.} (20. Nc3 {seems wilder.} Qg4+ 21. Qg2 Qxf4 22. Nd5) 20... Qc2 {[%emt 0:02:18]} 21. Rd2 {[%emt 0:10:09]} Qc1+ {[%emt 0:03:45] The position is equal.} 22. Qd1 {[%emt 0:00:06]} Qc4 {[%emt 0:03:28]} 23. Qf3 {[%emt 0:03:58]} ({Avoid the trap} 23. Rd7 $2 Qxf4 $1 24. Nc3 Bc5 $19) 23... Qc1+ {[%emt 0:00:28]} 24. Qd1 {[%emt 0:03:04]} Qc4 {[%emt 0:01:16]} 25. Qf3 {[%emt 0:00:02] Weighted Error Value: White=0.19 (very precise) /Black=0.12 (very precise)} ({Not} 25. Rd7 $2 {[#]} Qxf4 $1 26. Nc3 Bc5 $19) 1/2-1/2

[Event "Israeli Championship 2022"]
[Site "Yosiah Arad"]
[Date "2022.12.10"]
[Round "6.12"]
[White "Aizenberg, Benny"]
[Black "Kupervaser, Erez"]
[Result "1-0"]
[ECO "B31"]
[WhiteElo "2375"]
[BlackElo "2331"]
[Annotator "TA"]
[PlyCount "163"]
[EventDate "2022.12.05"]
[EventType "swiss"]
[EventCountry "ISR"]
[SourceTitle "playchess.com"]
[Source "ChessBase"]
[SourceQuality "1"]
[TimeControl "40/5400+30:1800+30"]

{[%evp 11,163,8,12,7,11,-8,51,51,54,51,47,46,73,30,66,51,51,60,51,44,64,48,57,23,23,21,25,18,7,11,12,12,16,16,16,10,9,-17,37,29,118,118,118,118,118,118,130,130,111,109,118,111,108,106,130,130,130,130,130,130,130,130,130,130,130,130,130,130,130,130,130,130,160,160,160,160,160,160,153,139,139,130,262,139,260,275,257,233,212,130,130,130,130,130,130,130,130,130,130,130,282,130,311,308,288,283,408,388,390,384,576,454,488,469,566,564,550,536,852,812,816,743,688,683,623,429,456,421,755,755,755,755,755,755,732,737,769,714,658,612,802,754,702,700,669,649,958,947,1324,1160,1073,835,810,762]} 1. e4 {[%emt 0:00:03]} c5 {[%emt 0:00:04]} 2. Nf3 {[%emt 0:00:03]} Nc6 {[%emt 0:00:04]} 3. Bb5 {[%emt 0:00:03]} g6 {[%emt 0:00:19]} 4. c3 {[%emt 0:00:03]} Nf6 {[%emt 0:02:41]} 5. Qe2 {[%emt 0:00:10]} Bg7 {[%emt 0:03:37]} 6. O-O {[%emt 0:00:07]} O-O {[%emt 0:00:45]} 7. d4 {[%emt 0:00:04] B31: Sicilian: 2...Nc6 3 Bb5 g6.} d5 {[%emt 0:01:43] is more profitable than 7...cxd4 at the moment.} 8. e5 {[%emt 0:00:05] [#]} Ne8 $146 {[%emt 0:02:51]} (8... Ne4 $11) ({Predecessor:} 8... Ne4 9. Be3 cxd4 10. cxd4 Bd7 11. Ne1 Qb6 12. Bxc6 Bxc6 13. f3 Bb5 14. Nd3 Bxd3 15. Qxd3 Qxb2 16. fxe4 Qxa1 {0-1 (37) Terry,R (2516)-Zhigalko,S (2572) Chess.com INT 2022}) 9. dxc5 {[%emt 0:03:54] White is slightly better.} Nc7 {[%emt 0:01:35]} 10. Bxc6 {[%emt 0:01:39]} bxc6 {[%emt 0:00:28]} 11. Re1 {[%emt 0:01:05]} a5 {[%emt 0:03:38]} 12. Nd4 {[%emt 0:02:28]} Ne6 {[%emt 0:06:59]} 13. Nxe6 {[%emt 0:05:26]} (13. Nxc6 Qd7 14. Nd4 (14. Qb5 Ba6 $15) 14... Nxc5 $11) 13... Bxe6 {[%emt 0:00:55]} 14. Na3 {[%emt 0:02:33][%cal Bb1a3,Ba3c2,Bc2d4][%mdl 32]} a4 {[%emt 0:03:59]} 15. Nc2 {[%emt 0:04:47]} Qa5 {[%emt 0:04:25]} 16. Qe3 {[%emt 0:03:10]} Qb5 {[%emt 0:11:11]} 17. Rb1 {[%emt 0:13:33]} Ra5 {[%emt 0:03:38][%cal Oe6d7]} 18. Nd4 {[%emt 0:03:16]} Qxc5 {[%emt 0:00:13]} 19. b4 {[%emt 0:00:08]} axb3 {[%emt 0:00:21]} 20. axb3 {[%emt 0:00:05]} Ra2 {[%emt 0:02:07]} 21. Nxe6 {[%emt 0:03:21]} Qxe3 {[%emt 0:00:09]} 22. Bxe3 {[%emt 0:00:04]} fxe6 {[%emt 0:00:08]} 23. Bd4 {[%emt 0:00:03]} Rfa8 {[%emt 0:06:46]} 24. f4 {[%emt 0:02:42]} Kf7 {[%emt 0:03:22]} (24... Bh6 $11) 25. h4 {[%emt 0:03:33]} h5 {[%emt 0:02:12]} (25... h6 $11 {remains equal.}) 26. Rf1 $16 {[%emt 0:03:19]} Bh6 {[%emt 0:07:01]} 27. g3 {[%emt 0:48:16]} Ke8 {[%emt 0:01:02]} 28. Rf2 {[%emt 0:00:00]} Kf7 {[%emt 0:01:49]} 29. Kg2 {[%emt 0:00:00]} Ke8 {[%emt 0:02:51]} 30. Kf3 {[%emt 0:00:00]} Rxf2+ {[%emt 0:00:19]} 31. Kxf2 {[%emt 0:00:00][%mdl 4096] Endgame KRB-KRB} Ra2+ {[%emt 0:00:14]} 32. Ke3 {[%emt 0:00:00]} Rg2 {[%emt 0:01:29]} 33. Kf3 {[%emt 0:00:00]} Ra2 {[%emt 0:00:07]} 34. b4 {[%emt 0:00:00]} Kf7 {[%emt 0:00:56]} 35. Re1 {[%emt 0:00:00]} Ke8 {[%emt 0:02:44]} 36. Re2 {[%emt 0:00:00]} Ra1 {[%emt 0:02:51]} 37. Rc2 {[%emt 0:00:00]} Kd7 {[%emt 0:01:13]} 38. c4 {[%emt 0:00:00]} Rb1 {[%emt 0:06:58]} 39. Bc5 {[%emt 0:00:00]} Rb3+ {[%emt 0:02:26]} 40. Kf2 {[%emt 0:00:00]} dxc4 {[%emt 0:01:23]} 41. Rxc4 {[%emt 0:06:19]} Ra3 {[%emt 0:30:58]} 42. Rc2 {[%emt 0:01:24][%cal Ob4b5] Strongly threatening b5!} Ra8 {[%emt 0:04:10] Against b5} 43. Rd2+ {[%emt 0:01:57]} Ke8 {[%emt 0:00:45]} 44. Rd3 {[%emt 0:00:26]} Ra6 {[%emt 0:05:40]} 45. Ke3 {[%emt 0:00:10]} Bf8 {[%emt 0:00:24]} 46. Kd4 {[%emt 0:08:43] White is more active.} Ra2 {[%emt 0:00:00]} (46... Kd7 $16 47. Kc4+ Kc7) 47. Kc4 {[%emt 0:00:00]} (47. Bb6 $1 $18) 47... Rc2+ {[%emt 0:00:00]} (47... Ra6 $16 {keeps fighting.} 48. Kb3 Ra8) 48. Kb3 $18 {[%emt 0:00:00]} Rg2 {[%emt 0:00:00]} 49. Bd4 {[%emt 0:00:00]} Kd7 {[%emt 0:00:00]} 50. Bc3+ {[%emt 0:00:00]} Kc7 {[%emt 0:00:00]} 51. Bd2 {[%emt 0:00:00]} Rg1 {[%emt 0:00:00]} 52. Kb2 {[%emt 0:00:00]} Rg2 {[%emt 0:00:00]} 53. Kc2 {[%emt 0:00:00]} Bh6 {[%emt 0:00:00]} 54. Ra3 {[%emt 0:00:00]} Kb7 {[%emt 0:00:00]} 55. Kd1 {[%emt 0:00:00]} Kb6 $2 {[%emt 0:00:00]} (55... Rg1+ $16 {was necessary.} 56. Ke2 Rg2+ 57. Ke1 Bf8) 56. Ke1 {[%emt 0:00:00]} (56. Be3+ $18 {is the precise move to win.} Kb5 57. Bc5) 56... Kb5 $2 {[%emt 0:00:00] [#] Black cannot hold the game after this.} (56... Kb7 $16 57. Rd3 Kc7) 57. Ra5+ $1 {[%emt 0:00:00]} Kc4 {[%emt 0:00:00]} 58. Rc5+ {[%emt 0:00:00]} Kd3 {[%emt 0:00:00]} (58... Kd4 $142 59. Rc3 (59. Rxc6 Rxg3 60. Rxe6 Rg4 $11) 59... Rg1+ 60. Kf2 Rd1) 59. Rc3+ {[%emt 0:00:00]} Ke4 {[%emt 0:00:00] [#]} 60. Kd1 $1 {[%emt 0:00:00]} ({Stronger than} 60. Rxc6 Rxg3 61. Rc4+ (61. Rxe6 Rg1+ 62. Kf2 Rg4 $11) 61... Kf5 $11) 60... Kd4 {[%emt 0:07:39]} (60... Kd5 $142 61. Be1 Rb2 62. Rc5+ Ke4 63. Rxc6 Rb1+ 64. Ke2 Rb2+ 65. Kd1 Rb1+ 66. Ke2 Rb2+ 67. Bd2 Kd5) 61. Be1 {[%emt 0:00:00] White is clearly winning.} ({Weaker is} 61. Rxc6 Rxg3 62. b5 Rb3 $11) 61... Rb2 {[%emt 0:00:05]} 62. Rxc6 {[%emt 0:00:00] Threatening mate with Bc3+.} Rb1+ {[%emt 0:00:16]} 63. Ke2 {[%emt 0:00:00]} Rb2+ {[%emt 0:00:06]} 64. Bd2 {[%emt 0:00:00]} Rb3 {[%emt 0:00:23] [#]} 65. Bc3+ $1 {[%emt 0:00:00][%mdl 512]} Kd5 {[%emt 0:00:44]} 66. Rc8 {[%emt 0:00:00] White threatens Kd3 and mate.} Ke4 {[%emt 0:00:09]} 67. Rc4+ {[%emt 0:00:00]} Kf5 {[%emt 0:00:21]} 68. Kf3 {[%emt 0:00:00]} Rb1 {[%emt 0:00:23]} 69. Bd4 {[%emt 0:00:00]} Rb3+ {[%emt 0:01:33]} (69... Bg7 $142 70. Be3 Rf1+ 71. Bf2 Rb1) 70. Be3 {[%emt 0:00:00]} Bg7 {[%emt 0:00:21]} 71. Rc7 {[%emt 0:00:00]} Rxb4 {[%emt 0:00:21]} 72. Rxe7 {[%emt 0:00:00] Intending Rf7+ and mate.} Bxe5 {[%emt 0:00:02]} 73. fxe5 {[%emt 0:00:00] And now Rf7+ would win.} Kxe5 {[%emt 0:00:01] KRB-KR} 74. Rf7 {[%emt 0:00:00] Threatens to win with Bf4+.} Rb3 {[%emt 0:00:10]} 75. Ke2 {[%emt 0:00:00]} Rb2+ {[%emt 0:00:41]} 76. Bd2 {[%emt 0:00:00]} Ra2 {[%emt 0:00:15]} 77. Kd3 {[%emt 0:00:00]} Kd5 {[%emt 0:01:25]} 78. Rg7 {[%emt 0:00:00]} e5 {[%emt 0:00:10]} 79. Rxg6 {[%emt 0:00:00]} e4+ {[%emt 0:00:04]} 80. Ke3 {[%emt 0:00:00]} Ra3+ {[%emt 0:00:16]} 81. Ke2 {[%emt 0:00:00]} Kd4 {[%emt 0:00:42]} 82. Rd6+ {[%emt 0:35:25] Weighted Error Value: White=0.10 (very precise) /Black=0.26 (precise)} 1-0

[Event "Israeli Championship 2022"]
[Site "Yosiah Arad"]
[Date "2022.12.10"]
[Round "6.13"]
[White "Sitbon, Itay"]
[Black "Shachar, Ehud"]
[Result "1-0"]
[ECO "C03"]
[WhiteElo "2092"]
[BlackElo "2319"]
[Annotator "TA"]
[PlyCount "83"]
[EventDate "2022.12.05"]
[EventType "swiss"]
[EventCountry "ISR"]
[SourceTitle "playchess.com"]
[Source "ChessBase"]
[SourceQuality "1"]
[TimeControl "40/5400+30:1800+30"]

{[%evp 11,83,17,29,14,21,-25,82,76,93,96,95,53,107,88,91,83,89,75,81,75,66,42,93,92,89,86,93,69,68,67,70,76,105,102,142,128,135,126,155,155,148,155,166,152,152,131,131,131,141,155,177,177,164,154,154,154,782,610,29965,29965,29958,11388,29974,29974,29977,29978,29979,29979,29979,29979,29980,29979,29979,6131]} 1. e4 {[%emt 0:00:02]} e6 {[%emt 0:00:11]} 2. d4 {[%emt 0:00:08]} d5 {[%emt 0:00:06]} 3. Nd2 {[%emt 0:00:07]} Be7 {[%emt 0:03:29]} 4. Bd3 {[%emt 0:02:09]} c5 {[%emt 0:01:50]} 5. dxc5 {[%emt 0:00:12]} Nf6 {[%emt 0:00:22]} 6. Qe2 {[%emt 0:00:15]} O-O {[%emt 0:01:13]} 7. Ngf3 {[%emt 0:00:38] C03: French Tarrasch: Unusual Black 3rd moves.} a5 {[%emt 0:00:52]} 8. h4 {[%emt 0:05:21]} (8. c4 $142) 8... dxe4 {[%emt 0:30:31]} (8... Nfd7 $11 {keeps the balance.}) 9. Nxe4 $16 {[%emt 0:00:13] White is better.} Nxe4 {[%emt 0:00:41]} 10. Qxe4 {[%emt 0:00:19][%csl Gd3][%cal Re4h7] [#]} f5 {[%emt 0:00:12]} 11. Qc4 {[%emt 0:07:54]} Qd5 {[%emt 0:09:41] [#]} (11... Na6 $14) 12. Bf4 $146 {[%emt 0:07:57][%cal Of4d6]} ({Predecessor:} 12. Be3 Nd7 13. O-O Nxc5 14. Qxd5 exd5 15. Bb5 f4 16. Bd4 Bg4 17. Rfe1 Bd6 18. Rad1 Bxf3 19. gxf3 {1-0 (44) Litwak,A (2267)-Bee,M (2169) Germany 2020}) 12... Bxc5 {[%emt 0:02:38]} 13. O-O {[%emt 0:00:59]} (13. Rd1 {with more complications.} Nd7 14. Be2 Qc6 15. Bd6) 13... Nd7 {[%emt 0:07:53]} 14. Qxd5 {[%emt 0:06:40]} exd5 {[%emt 0:00:08]} 15. c3 {[%emt 0:00:14]} Nf6 {[%emt 0:00:38]} 16. Nd4 {[%emt 0:00:55]} Bxd4 {[%emt 0:06:00]} ({Black should play} 16... Bd7 $14) 17. cxd4 {[%emt 0:00:10]} Bd7 {[%emt 0:00:07]} 18. Rac1 {[%emt 0:03:08]} Rfc8 {[%emt 0:03:38]} 19. Rc7 {[%emt 0:02:07]} Rxc7 {[%emt 0:00:21]} 20. Bxc7 {[%emt 0:00:02]} Kf7 {[%emt 0:00:36]} 21. f3 {[%emt 0:01:04]} Be6 {[%emt 0:02:17]} 22. Kf2 {[%emt 0:04:20]} Ng8 {[%emt 0:09:28]} 23. Rc1 {[%emt 0:03:43]} Ne7 {[%emt 0:00:35]} 24. Bb5 {[%emt 0:03:59] Inhibits Nc6. White is more active.} Nc6 {[%emt 0:12:32]} 25. Bxc6 {[%emt 0:05:08]} bxc6 {[%emt 0:00:08]} 26. Rxc6 {[%emt 0:00:29][%mdl 4096] Endgame KRB-KRB} Rc8 {[%emt 0:00:15]} 27. Rc5 {[%emt 0:00:43]} a4 {[%emt 0:00:14]} 28. Ke3 {[%emt 0:00:41]} Bd7 {[%emt 0:02:20]} 29. Kd3 {[%emt 0:08:31]} h6 {[%emt 0:01:28]} 30. Be5 {[%emt 0:05:51]} g5 {[%emt 0:02:59]} 31. Rxc8 {[%emt 0:13:25]} Bxc8 $18 {[%emt 0:00:03] KB-KB} 32. h5 {[%emt 0:01:33] Black must now prevent Kc3.} Ba6+ {[%emt 0:01:06]} 33. Kc3 {[%emt 0:00:20] Strongly threatening Kb4.} Bc4 $2 {[%emt 0:01:26] [#] Loses the game.} (33... Bf1 $16) 34. Kb4 $1 {[%emt 0:00:49]} Bxa2 {[%emt 0:00:08]} 35. Kxa4 {[%emt 0:00:01]} Bc4 {[%emt 0:00:51]} 36. b4 {[%emt 0:01:22][%cal Bb2b4,Bb4b5][%mdl 32] Intending Ka5 and mate.} g4 {[%emt 0:00:29]} 37. fxg4 {[%emt 0:01:36] White mates.} fxg4 {[%emt 0:00:02]} 38. g3 {[%emt 0:01:45]} Ke6 {[%emt 0:01:03]} 39. Bf4 {[%emt 0:04:01]} Kd7 {[%emt 0:00:13]} 40. b5 {[%emt 0:00:37]} Kc8 {[%emt 0:00:19]} 41. Bxh6 {[%emt 0:30:44]} Kb7 {[%emt 0:30:09]} 42. Bg5 {[%emt 0:00:18] Weighted Error Value: White=0.07 (flawless) /Black=0.52} 1-0

[Event "Israeli Championship 2022"]
[Site "Yosiah Arad"]
[Date "2022.12.10"]
[Round "6.14"]
[White "Uritsky, Yonathan"]
[Black "Poleg, Matan"]
[Result "1/2-1/2"]
[ECO "B80"]
[WhiteElo "2216"]
[BlackElo "2291"]
[Annotator "TA"]
[PlyCount "154"]
[EventDate "2022.12.05"]
[EventType "swiss"]
[EventCountry "ISR"]
[SourceTitle "playchess.com"]
[Source "ChessBase"]
[SourceQuality "1"]
[TimeControl "40/5400+30:1800+30"]

{[%evp 18,154,17,21,29,15,21,20,22,-161,-174,-167,-176,-161,-146,-152,-145,-159,-137,-193,-144,-156,-16,-4,-12,-9,-10,-102,-106,-226,-215,-252,-262,-259,-243,-310,-306,-291,-133,-130,-98,-96,-75,-77,-83,-85,-77,-79,-61,-61,-61,-61,-61,-135,-125,-134,-132,-131,-131,-130,-131,-132,-125,-126,-125,-126,-118,-121,-114,-108,-123,-112,-112,-110,-35,-35,-35,-35,-35,-35,-35,-35,-35,-79,-79,-78,-79,-146,-146,-206,-65,-65,-65,-65,-65,-65,-12,-42,-42,-42,-42,-42,-42,-79,-79,-79,0,-79,-79,-111,-111,-118,-118,-118,-118,-118,-118,-118,-118,-118,-118,-118,-118,-118,-118,-118,-118,-118,-118,-118,-118,-118,-118,-118,-118,-118,-118,-118,0]} 1. e4 {[%emt 1:31:00]} c5 {[%emt 1:31:00]} 2. Nf3 {[%emt 0:00:30]} e6 {[%emt 0:00:30]} 3. d4 {[%emt 0:00:30]} cxd4 {[%emt 0:00:30]} 4. Nxd4 {[%emt 0:00:30]} Nc6 {[%emt 0:00:30]} 5. Nc3 {[%emt 0:00:30]} Qc7 {[%emt 0:00:30]} 6. g3 {[%emt 0:00:30]} a6 {[%emt 0:00:30]} 7. Bg2 {[%emt 0:00:30]} Nf6 {[%emt 0:00:30]} 8. O-O {[%emt 0:00:30]} d6 {[%emt 0:00:30] 8...Nxd4 is setting a new trend.} 9. Re1 {[%emt 0:00:30]} Nxd4 {[%emt 0:00:30]} 10. Qxd4 {[%emt 0:00:30]} Bd7 {[%emt 0:00:30] B80: Sicilian Scheveningen: 6 g3 and 6 Be3, including English Attack.} 11. Bg5 {[%emt 0:00:30] [#]} Ng4 $146 {[%emt 0:00:30]} ({Predecessor:} 11... Be7 12. Rad1 Rc8 13. e5 dxe5 14. Qxe5 Qxe5 15. Rxe5 Ng4 16. Re4 Nxf2 17. Kxf2 Bxg5 18. Red4 {0-1 (38) Svane,F (2421)-Bjerre,J (2549) Chess.com INT 2021}) 12. h3 {[%emt 0:00:00]} Ne5 {[%emt 0:00:00] The position is equal.} 13. f4 $2 {[%emt 0:00:00]} (13. Bc1 $11 {and White stays safe.}) 13... h6 $1 $19 {[%emt 0:00:00]} 14. Bh4 {[%emt 0:00:00]} g5 $1 {[%emt 0:00:00]} (14... Ng6 15. Nd5 $1 exd5 16. exd5+ Ne7 17. Bxe7 Bxe7 18. Qxg7 $11) 15. fxg5 {[%emt 0:00:00]} hxg5 {[%emt 0:00:00]} 16. Bxg5 {[%emt 0:00:00] [#]} Rxh3 $3 {[%emt 0:00:00][%mdl 576]} 17. Bh4 {[%emt 0:00:00]} (17. Bf4 Bg7) 17... Be7 {[%emt 0:00:00]} 18. Re3 {[%emt 0:00:00] [#]} (18. Bxh3 $2 Nf3+ 19. Kh1 Nxd4 $19) (18. Bxe7 $17 {keeps fighting.} Kxe7 19. Re3) 18... Rxh4 {[%emt 0:00:00]} ({Black should play} 18... Bxh4 $1 $19 19. Bxh3 Bf6) 19. gxh4 $17 {[%emt 0:00:00]} d5 {[%emt 0:00:00]} ({Better is} 19... Bf6 $1 $17 {[%cal Oe5f3] And now ...Nf3+! would win.} 20. Qb4 Nc6) 20. exd5 $11 {[%emt 0:00:00]} Bc5 {[%emt 0:00:00]} 21. Qf4 {[%emt 0:00:00][%cal Oa1e1]} O-O-O {[%emt 0:00:00][%cal Oe5c4]} 22. d6 {[%emt 0:00:00]} (22. Ne4 $11 Bb6 23. Kh1 $1 Bxe3 24. Qxe3 exd5 25. Nf6) 22... Qb6 $1 $17 {[%emt 0:00:00]} 23. Qxe5 {[%emt 0:00:00]} Bxe3+ $19 {[%emt 0:00:00]} 24. Kh1 {[%emt 0:00:00]} Bd4 $1 {[%emt 0:00:00] This pair of bishops is nice.} 25. Qg5 {[%emt 0:00:00]} Rh8 {[%emt 0:00:00] Hoping for ...f6.} (25... Qxb2 $2 26. Rb1 $18) 26. Rf1 {[%emt 0:00:00]} f6 {[%emt 0:07:30]} 27. Rxf6 {[%emt 0:00:00]} Bxf6 {[%emt 0:00:00]} (27... Qxb2 $19 {and Black stays clearly on top.} 28. Ne4 Bxf6 29. Nxf6 Qd4) 28. Qxf6 $17 {[%emt 0:00:00]} Qd8 {[%emt 0:00:00]} 29. Qxd8+ {[%emt 0:00:00]} Rxd8 {[%emt 0:00:00][%mdl 4096] Endgame KRB-KBN} 30. Kh2 {[%emt 0:00:00]} Rh8 {[%emt 0:00:00][%mdl 1024] Black has strong compensation.} 31. Kg3 {[%emt 0:00:00]} Rg8+ {[%emt 0:00:00]} 32. Kf2 {[%emt 0:00:00]} Rg4 {[%emt 0:00:00]} (32... Be8 $5 {[%cal Rg8g4]} 33. Bh3 Kd7 $15) 33. h5 {[%emt 0:00:00]} Rg5 {[%emt 0:00:00]} (33... Rh4 34. Bf3 e5 35. Nd5 $11) 34. Bf3 {[%emt 0:00:48]} Bc6 {[%emt 0:00:00]} 35. Be2 {[%emt 0:01:33]} (35. Bxc6 $15 bxc6 36. Ne4 (36. h6 Rh5 $17) 36... Rxh5 37. Ke3) 35... Kd7 {[%emt 0:00:00]} 36. Ke3 {[%emt 0:01:04]} (36. h6 $2 Rg2+ 37. Ke3 Rh2 $19) 36... Rg2 {[%emt 0:00:00]} 37. Kf4 {[%emt 0:01:45]} Kxd6 {[%emt 0:00:00]} 38. h6 {[%emt 0:00:24]} Rg6 $1 {[%emt 0:00:00]} 39. h7 {[%emt 0:00:01]} e5+ $1 {[%emt 0:00:00]} (39... Rh6 $6 40. Bd3 Ke7 41. Kg5 $11) 40. Ke3 {[%emt 0:00:55]} Rh6 {[%emt 0:00:00] Prevents h8Q.} 41. Bd3 {[%emt 0:30:06]} Rh3+ {[%emt 0:24:41]} 42. Kf2 {[%emt 0:00:01]} Ke7 {[%emt 0:01:33]} 43. Bf5 {[%emt 0:00:24]} Rh5 {[%emt 0:00:24]} 44. Ke3 {[%emt 0:02:42]} Kf6 {[%emt 0:02:09]} (44... Rxf5 $2 45. h8=Q $18 (45. h8=N $2 {perishes.} Rf3+ 46. Ke2 Rg3 $19)) 45. Ne4+ {[%emt 0:00:01]} Bxe4 {[%emt 0:04:13]} ({Don't play} 45... Kxf5 $6 46. Ng3+ Kg6 47. Nxh5 Kxh7 48. Ng3 $11) (45... Kg7 $17 46. Nd6 Rh6) 46. Bxe4 {[%emt 0:00:13] KR-KB} Rh3+ {[%emt 0:00:04]} 47. Kf2 $1 {[%emt 0:00:19]} b6 {[%emt 0:02:34]} 48. Kg2 {[%emt 0:00:30]} Rh6 {[%emt 0:00:14]} 49. a3 {[%emt 0:01:54]} Kg7 {[%emt 0:01:55]} 50. Kg3 {[%emt 0:00:43]} Rf6 {[%emt 0:01:55]} 51. Bd3 {[%emt 0:01:14][%cal Ob2b3]} Rf4 {[%emt 0:01:30] Inhibits b3.} 52. Bg6 {[%emt 0:02:00] [#] Inhibits a5.} a5 $1 {[%emt 0:01:11][%cal Oa5a4]} (52... Kxg6 $2 53. h8=Q $18 (53. h8=R Kg5 $11)) 53. Bd3 {[%emt 0:00:00]} (53. b3 $17 {was the only chance.}) 53... Rd4 {[%emt 0:00:00]} (53... a4 $19 {White must now prevent ...Kh8.} 54. c3 Kh8) 54. Kf3 $15 {[%emt 0:00:00]} Rh4 {[%emt 0:00:00]} 55. Be4 {[%emt 0:00:00]} Rf4+ {[%emt 0:00:00]} 56. Ke3 {[%emt 0:00:00]} Rf8 {[%emt 0:00:00]} (56... a4 $15) 57. a4 {[%emt 0:00:00]} Rd8 {[%emt 0:00:00]} 58. b3 {[%emt 0:00:00]} Rd6 {[%emt 0:00:00]} 59. Bd3 {[%emt 0:00:00]} Rh6 {[%emt 0:00:00]} (59... Rd4 {keeps more tension.} 60. Be4 Kh8 61. Kf3 Rd2) 60. Ke4 {[%emt 0:00:00]} Rxh7 {[%emt 0:00:00] ...Kf6 is the strong threat.} 61. Kxe5 {[%emt 0:00:00] [#]} Rh5+ {[%emt 0:00:00]} (61... Rh6 $1 $17) 62. Kd4 {[%emt 0:00:00]} (62. Ke6 $11 {keeps the balance.}) 62... Kf6 {[%emt 0:00:00] Black is better.} 63. Kc3 {[%emt 0:00:00]} Rh4 {[%emt 0:00:00]} 64. Kb2 {[%emt 0:00:00]} Ke5 {[%emt 0:00:00]} 65. Bb5 {[%emt 0:00:00]} Kd4 {[%emt 0:00:00]} 66. Ba6 {[%emt 0:00:00]} Rh3 {[%emt 0:00:00]} 67. Bb5 {[%emt 0:00:00]} Rc3 {[%emt 0:00:00]} 68. Ba6 {[%emt 0:00:00]} Rc5 {[%emt 0:00:00]} 69. Bb5 {[%emt 0:00:00]} Ke3 {[%emt 0:00:00]} 70. Ba6 {[%emt 0:00:00]} Kd2 {[%emt 0:00:00]} 71. Bd3 {[%emt 0:00:00]} Rd5 {[%emt 0:00:00]} 72. Bc4 {[%emt 0:00:00]} Rd4 {[%emt 0:00:00]} 73. Bb5 {[%emt 0:00:00]} Rd8 {[%emt 0:00:00]} 74. Bd3 {[%emt 0:00:00]} Rc8 {[%emt 0:00:00]} 75. Bc4 {[%emt 0:00:00]} Rc7 {[%emt 0:00:00]} 76. Bd3 {[%emt 0:00:00]} Rc5 {[%emt 0:00:00]} 77. Bc4 {[%emt 0:00:00]} Rc7 {[%emt 0:00:00] Weighted Error Value: White=0.24 (precise) /Black=0.14 (very precise)} (77... Rc6 $17 78. Bd3 Rc7) 1/2-1/2